Cogmind - Beta 14 @@@ ROGUE MODE // 2024.12.07 @ 22:09:14 Player: Kyle Rick Result: Destroyed by S-27 Virus with Autogun Performance ------------- Evolutions (3) 1500 Regions Visited (10) 2000 Robots Destroyed (99) 495 Value Destroyed (2821) 2821 Prototype IDs (14) 280 Alien Tech Used (0) 0 Bonus (749) 749 TOTAL SCORE: 7845 Bonus ------- Follower Combat Kills 296 Aligned with FarCom 300 Met Imprinter 300 Friendly Fire -147 Cogmind --------- Core Integrity 0/700 Matter 285/300 Energy 99/100 System Corruption 1% Temperature Cool (0) Movement Core (50) Location -6/Proximity Caves Parts ------- > --- POWER (1) -------- (None) > --- PROPULSION (4) --- (None) > --- UTILITY (4) ------ Advanced Terrain Scan Processor > --- WEAPON (4) ------- (None) > --- INVENTORY (5) ---- Neutrino Core Armored Huge Wheel Peak State ------------ > --- POWER ------------ Reinforced Deuterium Engine > --- PROPULSION ------- Armored Treads Armored Treads Armored Treads Advanced Treads > --- UTILITY ---------- High-capacity Storage Unit Improved Targeting Computer Hardened Medium Armor Plating Hacking Suite > --- WEAPON ----------- XL Autogun Array > --- INVENTORY -------- Improved Deuterium Engine Armored Huge Wheel Gravmag System Gravmag System Gravmag System High-capacity Matter Pod Improved Signal Interpreter Improved Terrain Scanner Advanced Terrain Scan Processor Kinecellerator Weapon Cycler Transmission Jammer Insulated Plating Component Analysis Suite System Restoration Module Heavy Particle Cannon Improved Light Cannon Bore Cannon Proton Missile Launcher [Rating: 68] Favorites ----------- Power Reinforced Deuterium Engine Engine Reinforced Deuterium Engine Power Core Light Nuclear Core Propulsion Light Treads Treads Light Treads Utility High-capacity Storage Unit Device Improved Terrain Scanner Storage High-capacity Storage Unit Processor Improved Targeting Computer Hackware Hacking Suite Protection Hardened Medium Armor Plating Weapon XL Autogun Array Ballistic Gun XL Autogun Array Ballistic Cannon Light Cannon Special Weapon Field Lobotomy Kit Impact Weapon Makeshift Hammer Build | -11 -10 -10 -10 -9 -8 -7 -7 -7 -7 -6 ------- Run | Yrd Mat Min Exi Min Mat Fac Low Low Zio Pro Slots Evolved 6 | . . . . . 4 2 . . . . Power . | . . . . . . . . . . . Propulsion 2 | . . . . . 1 1 . . . . Utility 2 | . . . . . 1 1 . . . . Weapon 2 | . . . . . 2 . . . . . Parts Attached 55 | 6 8 1 4 . 9 6 2 . 17 2 Power 9 | 1 2 1 . . 2 1 . . 2 . Engine 8 | 1 2 1 . . 1 1 . . 2 . Core 1 | . . . . . 1 . . . . . Reactor . | . . . . . . . . . . . Propulsion 18 | 2 2 . . . 2 3 2 . 7 . Treads 18 | 2 2 . . . 2 3 2 . 7 . Leg . | . . . . . . . . . . . Wheel . | . . . . . . . . . . . Hover . | . . . . . . . . . . . Flight . | . . . . . . . . . . . Utility 14 | 1 3 . 2 . 4 2 . . . 2 Device 4 | . . . 2 . . 1 . . . 1 Storage 3 | 1 1 . . . 1 . . . . . Processor 4 | . 1 . . . 1 1 . . . 1 Hackware 1 | . . . . . 1 . . . . . Protection 2 | . 1 . . . 1 . . . . . Artifact . | . . . . . . . . . . . Weapon 14 | 2 1 . 2 . 1 . . . 8 . Energy Gun . | . . . . . . . . . . . Energy Cannon . | . . . . . . . . . . . Ballistic Gun 10 | 2 . . 1 . 1 . . . 6 . Ballistic Cannon 2 | . 1 . . . . . . . 1 . Launcher . | . . . . . . . . . . . Special Weapon 1 | . . . 1 . . . . . . . Impact Weapon 1 | . . . . . . . . . 1 . Slashing Weapon . | . . . . . . . . . . . Piercing Weapon . | . . . . . . . . . . . Special Melee Weapon . | . . . . . . . . . . . Unidentified Prototypes 4 | . . . 2 . 1 . . . 1 . Parts Lost 9 | . . . . . . . . . 1 8 Power 2 | . . . . . . . . . 1 1 Propulsion 2 | . . . . . . . . . . 2 Utility 2 | . . . . . . . . . . 2 Weapon 3 | . . . . . . . . . . 3 Highest Loss Streak 7 | . . . . . . . . . 1 7 To Critical Strikes . | . . . . . . . . . . . Average Slot Usage (%) 81 | . 97 100 92 100 67 74 76 76 90 7 Engine 8 | . 14 14 14 14 7 7 7 7 7 . Treads 28 | . 28 28 28 28 27 29 30 30 30 1 Device 1 | . . . 1 14 5 1 . . . . Storage 8 | . 14 14 14 14 9 7 7 7 7 . Processor 5 | . . 14 5 . 3 4 7 7 7 3 Hackware 4 | . . . . . 1 7 7 7 7 . Protection 6 | . 10 . . . 3 7 7 7 7 . Ballistic Gun 11 | . 17 14 12 14 8 7 7 7 20 1 Ballistic Cannon 2 | . 10 14 14 14 . . . . . . Peak Build Rating 68 | 6 8 8 24 13 53 61 65 65 68 56 Average Rating 46 | 4 7 8 10 13 49 58 63 65 58 7 On Entrance 31 | . 6 8 8 13 13 53 61 65 65 56 Naked Turns 99 | . . . . . . . . . . 99 Heaviest Build 81 | 11 29 28 34 29 70 78 78 78 81 70 Greatest Support 85 | 40 40 40 40 40 60 80 85 85 85 80 Greatest Overweight (x) 1 | . . . . . 1 1 . . 1 1 Average Overweight (x) . | . . . . . . . . . . . Largest Inventory Capacity 20 | 8 15 15 15 15 20 20 20 20 20 20 Average Capacity 18 | 6 14 15 15 15 19 20 20 20 20 6 Most Carried 20 | . 15 15 15 14 16 20 20 20 20 20 Average Carried 16 | . 9 14 14 14 13 16 19 20 19 5 Final Capacity 20 | 8 15 15 15 15 20 20 20 20 20 5 Final Carried 20 | . 15 15 14 14 14 20 20 20 20 3 Class Distribution -------------------- 36% | Skirmisher 27% | Gunner 23% | Mutant 12% | Scavenger-Gunner Dominant Class ---------------- Mutant | -10/Materials Mutant | -10/Mines Mutant | -10/Exiles Skirmisher | -9/Mines Skirmisher | -8/Materials Skirmisher | -7/Factory Gunner | -7/Lower Caves Gunner | -7/Lower Caves Scavenger-Gunner | -7/Zion Mutant | -6/Proximity Caves Resources | -11 -10 -10 -10 -9 -8 -7 -7 -7 -7 -6 ----------- Run | Yrd Mat Min Exi Min Mat Fac Low Low Zio Pro Matter Collected 4500 | 194 507 70 43 . 540 817 116 343 1732 138 Remotely . | . . . . . . . . . . . Salvage Created 4567 | . 411 62 . . 481 1077 148 534 1854 . Parts 280 | . 27 7 . . 22 61 8 24 131 . Haulers Intercepted 7 | . 1 . . . 2 4 . . . . Recyclers Shooed . | . . . . . . . . . . . Parts Field Recycled . | . . . . . . . . . . . Retrieved Matter . | . . . . . . . . . . . Parts Self-Destructed 38 | . . . . . . . 15 23 . . Prevented . | . . . . . . . . . . . Kills | -11 -10 -10 -10 -9 -8 -7 -7 -7 -7 -6 ------- Run | Yrd Mat Min Exi Min Mat Fac Low Low Zio Pro Combat Hostiles Destroyed 56 | . 12 3 . . 5 13 3 11 9 . Guns 48 | . 6 1 . . 5 13 3 11 9 . Cannons 8 | . 6 2 . . . . . . . . Classes Destroyed 16 | . 5 1 . . 2 4 1 . 3 . Worker 1 | . . . . . . 1 . . . . Tunneler 1 | . . 1 . . . . . . . . Hauler 7 | . 1 . . . 2 4 . . . . Recycler 4 | . . . . . 2 2 . . . . Operator 3 | . 1 . . . 1 1 . . . . Watcher 7 | . 2 . . . . 5 . . . . Swarmer 15 | . 5 3 . . . 3 . 4 . . Grunt 22 | . 7 . . . 4 5 2 4 . . Brawler 1 | . . . . . . 1 . . . . Duelist 1 | . . . . . . . 1 . . . Sentry 2 | . . . . . 1 . . 1 . . Hunter 2 | . . . . . . 1 . 1 . . Programmer 4 | . . . . . . 3 . 1 . . Zionite 62 | . . . . . . . . . 62 . Tinkerer 2 | . . . . . . . . . 2 . Thug 1 | . . . . . . . . . 1 . Butcher 3 | . . . . . . . . . 3 . Mutant 5 | . . . . . . . . . 5 . Best Kill Streak 12 | . 4 3 . . 2 4 1 4 12 . Combat Bots Only 4 | . 3 3 . . 2 3 1 4 4 . Max Kills in Single Turn 2 | . 1 1 . . 1 2 1 1 2 . Gunslinging . | . . . . . . . . . . . Exploded . | . . . . . . . . . . . Melee . | . . . . . . . . . . . Uniques/NPCs Destroyed . | . . . . . . . . . . . Combat | -11 -10 -10 -10 -9 -8 -7 -7 -7 -7 -6 -------- Run | Yrd Mat Min Exi Min Mat Fac Low Low Zio Pro Hostile Shots Fired 475 | . 40 6 . . 13 28 2 27 245 114 Missed 188 | . 14 2 . . 4 8 1 7 106 46 Damage Taken 4009 | . 251 38 . . 148 357 18 248 1891 1058 Core 772 | . 46 . . . 17 17 . 10 61 621 Absorbed by Shields . | . . . . . . . . . . . Redirected to Shielding 11 | . 11 . . . . . . . . . Regen/Repaired (Parts) 120 | . . . . . . 79 . . 41 . Core Remaining (%) 92 | 100 . . . 81 96 . . . . . Volleys Fired 274 | . 40 4 . . 16 47 4 21 137 5 Largest 4 | . 2 2 . . 1 1 1 1 4 3 Hottest 80 | . 55 55 . . 60 60 60 60 80 60 Shots Fired 680 | . 80 8 . . 16 48 6 22 485 15 Gun 641 | . 48 4 . . 16 48 6 22 482 15 Cannon 39 | . 32 4 . . . . . . 3 . Launcher . | . . . . . . . . . . . Special . | . . . . . . . . . . . Kinetic 680 | . 80 8 . . 16 48 6 22 485 15 Thermal . | . . . . . . . . . . . Explosive . | . . . . . . . . . . . Electromagnetic . | . . . . . . . . . . . Robot Hit Streak 16 | . 8 3 . . 13 16 9 12 15 6 Robot Miss Streak 13 | . 4 1 . . 4 13 3 4 4 2 Penetration Max . | . . . . . . . . . . . Secondary Targets 9 | . . . . . . . . . 9 . Max Gunslinging Chain 2 | . . . . . . . . . 2 . Shots Hit Robots 417 | . 45 5 . . 16 41 4 19 276 11 Core Hits 204 | . 23 4 . . 14 38 5 18 98 4 Critical Kills . | . . . . . . . . . . . Critical Parts Destroyed 2 | . 1 . . . . . . . 1 . Critical Strikes 3 | . 2 . . . . . . . 1 . Destroy 1 | . 1 . . . . . . . . . Blast 1 | . 1 . . . . . . . . . Smash 1 | . . . . . . . . . 1 . Melee Attacks 8 | . . . . . . . . . 8 . Impact 8 | . . . . . . . . . 8 . Slashing . | . . . . . . . . . . . Piercing . | . . . . . . . . . . . Sneak Attacks . | . . . . . . . . . . . Combat Hostiles . | . . . . . . . . . . . Follow-up Attacks . | . . . . . . . . . . . Damage Inflicted 11303 | . 661 75 . . 892 1997 154 1048 6230 246 Guns 10685 | . 302 26 . . 892 1997 154 1048 6024 242 Cannons 408 | . 359 49 . . . . . . . . Explosions . | . . . . . . . . . . . Melee 206 | . . . . . . . . . 206 . Ramming 4 | . . . . . . . . . . 4 Kinetic 11093 | . 661 75 . . 892 1997 154 1048 6024 242 Thermal . | . . . . . . . . . . . Explosive . | . . . . . . . . . . . Electromagnetic . | . . . . . . . . . . . Impact 206 | . . . . . . . . . 206 . Slashing . | . . . . . . . . . . . Piercing . | . . . . . . . . . . . Highest Corruption 3 | . . . . . . 2 2 3 3 1 Average Corruption 1 | . . . . . . 2 2 2 1 1 Corruption Purged . | . . . . . . . . . . . Corruption Blocked . | . . . . . . . . . . . Effects 56 | . . . . . . 21 15 10 10 . Message Errors 19 | . . . . . . 7 6 5 1 . Matter Fused 12 | . . . . . . 5 2 2 3 . Heat Flow Errors 3 | . . . . . . 2 . . 1 . Energy Discharges 6 | . . . . . . 2 1 2 1 . Parts Rejected 1 | . . . . . . . . . 1 . Data Loss (minor) 6 | . . . . . . 2 4 . . . Data Loss (major) 3 | . . . . . . 2 . . 1 . Misfires 4 | . . . . . . 1 2 1 . . Weapon Failures 2 | . . . . . . . . . 2 . Overload Shots . | . . . . . . . . . . . Overflow Damage 54 | . . . . . . . . . 54 . Projectiles . | . . . . . . . . . . . Explosions . | . . . . . . . . . . . Melee 54 | . . . . . . . . . 54 . Knockbacks 6 | . 5 . . . . . . . 1 . Impact 1 | . . . . . . . . . 1 . Kinetic 4 | . 4 . . . . . . . . . Secondary 1 | . 1 . . . . . . . . . Self-Inflicted Damage 2 | . . . . . . . . . . 2 Shots . | . . . . . . . . . . . Rammed 1 | . . . . . . . . . . 1 Targets Rammed 1 | . . . . . . . . . . 1 Kicked . | . . . . . . . . . . . Crushed . | . . . . . . . . . . . Highest Temperature 410 | . 33 . . . 105 275 49 165 410 107 Average Temperature 83 | . 15 . . . 38 69 26 67 99 47 Received Heat Transfer 720 | . 78 . . . 81 36 27 36 264 198 Effects 3 | . . . . . . . . . 3 . Energy Bleed 1 | . . . . . . . . . 1 . Interference 2 | . . . . . . . . . 2 . Siege Activations . | . . . . . . . . . . . Robots Corrupted 1 | . . . . . . . . . 1 . Combat Hostiles . | . . . . . . . . . . . Parts Fried . | . . . . . . . . . . . Impact Corruptions 2 | . . . . . . . . . 2 . Robots Melted . | . . . . . . . . . . . Combat Hostiles . | . . . . . . . . . . . Parts Melted . | . . . . . . . . . . . Heat Transferred . | . . . . . . . . . . . Parts Sabotaged . | . . . . . . . . . . . Parts Stolen . | . . . . . . . . . . . Parts Stripped . | . . . . . . . . . . . Power Chain Reactions . | . . . . . . . . . . . Alert | -11 -10 -10 -10 -9 -8 -7 -7 -7 -7 -6 ------- Run | Yrd Mat Min Exi Min Mat Fac Low Low Zio Pro Peak Influence 362 | . 281 108 . . 182 362 . . . . Initial 82 | . . 18 . . . 82 . . . . Average 97 | . 75 70 . . 101 119 . . . . Maximum Alert Level 1 | . 1 . . . . 1 . . . . Low Security (%) 89 | 100 91 100 . 100 100 83 . . . . Level 1 10 | . 8 . . . . 16 . . . . Level 2 . | . . . . . . . . . . . Level 3 . | . . . . . . . . . . . Level 4 . | . . . . . . . . . . . Level 5 . | . . . . . . . . . . . High Security . | . . . . . . . . . . . Max Security . | . . . . . . . . . . . Squads Dispatched 14 | . 3 . . . 3 8 . . . . Investigation 5 | . 3 . . . . 2 . . . . Extermination 5 | . . . . . . 5 . . . . Reinforcement 4 | . . . . . 3 1 . . . . Assault . | . . . . . . . . . . . Garrison . | . . . . . . . . . . . Intercept . | . . . . . . . . . . . Searches Triggered . | . . . . . . . . . . . Construction Impeded . | . . . . . . . . . . . Haulers Reinforced . | . . . . . . . . . . . Active Scanning Responses . | . . . . . . . . . . . Cargo Convoy Interrupts . | . . . . . . . . . . . Stealth | -11 -10 -10 -10 -9 -8 -7 -7 -7 -7 -6 --------- Run | Yrd Mat Min Exi Min Mat Fac Low Low Zio Pro Distress Signals . | . . . . . . . . . . . Communications Jammed . | . . . . . . . . . . . Distress Signals . | . . . . . . . . . . . Times Spotted 170 | . 21 4 . . 11 25 3 12 79 15 Peak Tracking Total 8 | . 3 2 . . 3 5 1 4 8 6 Tactical Retreats 16 | . 2 1 . . . 1 . 1 6 5 Traps | -11 -10 -10 -10 -9 -8 -7 -7 -7 -7 -6 ------- Run | Yrd Mat Min Exi Min Mat Fac Low Low Zio Pro Traps Triggered 5 | . 2 . . . . 3 . . . . Indirectly . | . . . . . . . . . . . Trap Hack Attempts . | . . . . . . . . . . . Triggered . | . . . . . . . . . . . Disarmed . | . . . . . . . . . . . Reprogrammed . | . . . . . . . . . . . Reused . | . . . . . . . . . . . Traps Extracted . | . . . . . . . . . . . Installed . | . . . . . . . . . . . Triggered . | . . . . . . . . . . . Machines | -11 -10 -10 -10 -9 -8 -7 -7 -7 -7 -6 ---------- Run | Yrd Mat Min Exi Min Mat Fac Low Low Zio Pro Machines Disabled 10 | . 1 . . . 5 2 . . 2 . Max in Single Turn 2 | . 1 . . . 2 1 . . 1 . Garrison Access 2 | . . . . . . 2 . . . . Machines Repaired . | . . . . . . . . . . . Machines Dismantled . | . . . . . . . . . . . Machines Sabotaged . | . . . . . . . . . . . Overloaded Fab Kills . | . . . . . . . . . . . Hacking | -11 -10 -10 -10 -9 -8 -7 -7 -7 -7 -6 --------- Run | Yrd Mat Min Exi Min Mat Fac Low Low Zio Pro Machines Accessed 17 | . 4 . . . 2 11 . . . . Terminals 11 | . 4 . . . 2 5 . . . . Fabricators 1 | . . . . . . 1 . . . . Repair Stations 2 | . . . . . . 2 . . . . Recycling Units 1 | . . . . . . 1 . . . . Scanalyzers . | . . . . . . . . . . . Garrison Access 2 | . . . . . . 2 . . . . Total Hacks 42 | . 11 . . . 8 23 . . . . Successful 17 | . 1 . . . 3 13 . . . . Failed 25 | . 10 . . . 5 10 . . . . Catastrophic 3 | . . . . . 1 2 . . . . Database Lockouts . | . . . . . . . . . . . Manual 13 | . 8 . 1 . 3 1 . . . . Terminals 31 | . 11 . . . 8 12 . . . . Fabricators 2 | . . . . . . 2 . . . . Repair Stations 6 | . . . . . . 6 . . . . Recycling Units 1 | . . . . . . 1 . . . . Scanalyzers . | . . . . . . . . . . . Garrison Access 2 | . . . . . . 2 . . . . Terminal Hacks 9 | . 1 . . . 3 5 . . . . Robot Analysis 1 | . . . . . 1 . . . . . Prototype ID Bank 3 | . . . . . 1 2 . . . . Open DSF 1 | . . . . . . 1 . . . . Branch Access Points 2 | . . . . . 1 1 . . . . Unreport Threat 1 | . 1 . . . . . . . . . Locate Traps 1 | . . . . . . 1 . . . . Fabricator Hacks 1 | . . . . . . 1 . . . . Build 1 | . . . . . . 1 . . . . Repair Station Hacks 4 | . . . . . . 4 . . . . Scan Component 2 | . . . . . . 2 . . . . Repair 2 | . . . . . . 2 . . . . Recycling Unit Hacks . | . . . . . . . . . . . Scanalyzer . | . . . . . . . . . . . Garrison Access Hacks 2 | . . . . . . 2 . . . . Seal Access 2 | . . . . . . 2 . . . . Unauthorized Hacks 1 | . . . . . . 1 . . . . Terminals . | . . . . . . . . . . . Fabricators . | . . . . . . . . . . . Repair Stations . | . . . . . . . . . . . Recycling Units 1 | . . . . . . 1 . . . . Tunnel 1 | . . . . . . 1 . . . . Scanalyzers . | . . . . . . . . . . . Garrison Access . | . . . . . . . . . . . Data Cores Recovered 1 | . . . . . . 1 . . . . Used 1 | . . . . . . 1 . . . . Hacking Detections 12 | . 4 . . . 1 7 . . . . Full Trace Events 2 | . 1 . . . . 1 . . . . Feedback Events . | . . . . . . . . . . . Feedback Blocked . | . . . . . . . . . . . Robot Schematics Acquired 3 | . . . . . . . . . 3 . Robots Built . | . . . . . . . . . . . Authchips . | . . . . . . . . . . . Time . | . . . . . . . . . . . Total Robot Build Rating . | . . . . . . . . . . . Part Schematics Acquired 15 | . . . . . . . . . 15 . Parts Built 2 | . . . . . . 2 . . . . Authchips . | . . . . . . . . . . . Time 84 | . . . . . . 84 . . . . Total Part Build Rating 8 | . . . . . . 8 . . . . Parts Repaired 2 | . . . . . . 2 . . . . Time 39 | . . . . . . 39 . . . . Parts Recycled . | . . . . . . . . . . . Recycled Matter . | . . . . . . . . . . . Retrieved Matter . | . . . . . . . . . . . Retrieved Components . | . . . . . . . . . . . Parts Scanalyzed . | . . . . . . . . . . . Part Schematics Acquired . | . . . . . . . . . . . Parts Damaged . | . . . . . . . . . . . Bothacking | -11 -10 -10 -10 -9 -8 -7 -7 -7 -7 -6 ------------ Run | Yrd Mat Min Exi Min Mat Fac Low Low Zio Pro Used RIF Installer . | . . . . . . . . . . . Robots Hacked . | . . . . . . . . . . . Non-combat . | . . . . . . . . . . . Combat . | . . . . . . . . . . . Robot Hacks Applied . | . . . . . . . . . . . Relay Couplers Released . | . . . . . . . . . . . Fabnet Peak Effective % . | . . . . . . . . . . . Robots Rewired . | . . . . . . . . . . . Allies Hacked 2 | . . . . . . 2 . . . . Hacks Repelled . | . . . . . . . . . . . Allies | -11 -10 -10 -10 -9 -8 -7 -7 -7 -7 -6 -------- Run | Yrd Mat Min Exi Min Mat Fac Low Low Zio Pro Total Allies 8 | . . 2 . 3 . 3 . . . . Largest Group 3 | . . 2 2 3 3 3 1 . . . Highest-Rated Group 93 | . . 41 41 40 40 93 31 . . . Highest-Rated Ally 31 | . . 31 31 16 16 31 31 . . . Total Orders . | . . . . . . . . . . . Ally Attacks 87 | . . . . . 52 31 4 . . . Total Damage 1069 | . . . . . 477 551 41 . . . Kills 14 | . . . . . 8 6 . . . . Allies Corrupted . | . . . . . . . . . . . Allies Melted . | . . . . . . . . . . . Intel | -11 -10 -10 -10 -9 -8 -7 -7 -7 -7 -6 ------- Run | Yrd Mat Min Exi Min Mat Fac Low Low Zio Pro Robot Analysis Total 1 | . . . . . 1 . . . . . Derelict Logs Recovered 5 | . . . . 1 . . 3 . 1 . Drone Launches . | . . . . . . . . . . . Drone Recoveries . | . . . . . . . . . . . Exploration | -11 -10 -10 -10 -9 -8 -7 -7 -7 -7 -6 ------------- Run | Yrd Mat Min Exi Min Mat Fac Low Low Zio Pro Turns Passed 9159 | 80 1003 391 480 174 799 2426 1141 628 1861 176 Spaces Moved 5124 | 48 518 227 279 109 312 1292 701 376 943 319 Core 320 | 4 . . . . . . . . . 316 Treads 4804 | 44 518 227 279 109 312 1292 701 376 943 3 Legs . | . . . . . . . . . . . Wheels . | . . . . . . . . . . . Hover . | . . . . . . . . . . . Flight . | . . . . . . . . . . . Fastest Speed 50 | 50 160 160 160 160 160 162 158 158 158 50 Average Speed 158 | 150 160 160 160 160 227 162 159 158 166 51 Slowest Speed 250 | 160 160 160 160 160 243 243 162 158 250 250 Overloaded Moves . | . . . . . . . . . . . Propulsion Burnouts . | . . . . . . . . . . . Robots Hopped . | . . . . . . . . . . . Cave-ins Triggered . | . . . . . . . . . . . Exploration Rate (%) 46 | 4 61 30 62 34 25 32 75 58 74 57 Regions Visited 10 Branch Regions 7 Pre-discovered Areas 5 | . . . . 1 . 1 2 . 1 . Known Exits Taken 1 | . . . . . . 1 . . . . Unknown Exits Taken 9 | 1 1 1 1 1 1 . 1 1 1 . Scrap Searched 14 | . . . . . . . 12 . 2 . Spaces Dug . | . . . . . . . . . . . Terrain Destroyed 23 | . . . . . 5 9 4 5 . . Melee . | . . . . . . . . . . . Projectile 23 | . . . . . 5 9 4 5 . . AOE . | . . . . . . . . . . . Terrain Rammed . | . . . . . . . . . . . Walls Destroyed . | . . . . . . . . . . . Machines Disabled . | . . . . . . . . . . . Actions | -11 -10 -10 -10 -9 -8 -7 -7 -7 -7 -6 --------- Run | Yrd Mat Min Exi Min Mat Fac Low Low Zio Pro Total 5993 | 53 613 248 316 109 407 1620 724 410 1166 327 Wait 444 | . 28 12 21 1 48 258 14 14 48 . Move 5114 | 47 517 226 278 108 311 1291 700 375 942 319 Hop . | . . . . . . . . . . . Pick Up 42 | . 13 2 3 . 9 11 1 . 3 . Fast Attach 31 | 6 4 . 3 . 4 3 2 . 9 . Attach 10 | . . . 1 . 3 2 . . 2 2 Detach 11 | . 2 . 1 . 6 1 . . 1 . Swap 14 | . 4 1 . . 2 1 . . 6 . Drop 44 | . 5 3 9 . 8 6 3 . 10 . Fire 274 | . 40 4 . . 16 47 4 21 137 5 Melee 8 | . . . . . . . . . 8 . Ram 1 | . . . . . . . . . . 1 Kick . | . . . . . . . . . . . Crush . | . . . . . . . . . . . Escape Stasis . | . . . . . . . . . . . Rewire . | . . . . . . . . . . . Trap . | . . . . . . . . . . . Miscellaneous . | . . . . . . . . . . . Route ------- -11/Scrapyard -10/Materials (discovered 2 exits: [*Mat] / [*Min]) -10/Mines (discovered 2 exits: [*Mat] / *Exi) -10/Exiles -9/Mines -8/Materials (discovered 2 exits: *Fac / Sto) -7/Factory (discovered 2 exits: *Low x2) -7/Lower Caves -7/Lower Caves (discovered 2 exits: [*Fac] / [*Zio]) -7/Zion -6/Proximity Caves History --------- Turn | Location | Event 7 | -11/Scrapyard | Discovered new exit (range 15) 81 | -11/Scrapyard | Entered Materials 304 | -10/Materials | Build established: Mutant 493 | -10/Materials | Discovered new exit (range 11) 882 | -10/Materials | Discovered new exit (range 13) 1084 | -10/Materials | Entered Mines 1187 | -10/Mines | Deemed a non-threat by the Exiles lab entrance 1188 | -10/Mines | Discovered new exit (range 5) 1386 | -10/Mines | Discovered new exit (range 5) 1475 | -10/Mines | Entered Exiles 1475 | -10/Exiles | Accompanied by 2 allies 1505 | -10/Exiles | Led the pair of lost Derelicts to a safe place 1515 | -10/Exiles | Met 8R-AWN 1541 | -10/Exiles | Met EX-HEX 1587 | -10/Exiles | Met EX-BIN 1610 | -10/Exiles | Aligned with FarCom system 1611 | -10/Exiles | Given EX-Vault access code 1648 | -10/Exiles | Opened EX-Vault 1660 | -10/Exiles | Found Prototype Special Weapon 1660 | -10/Exiles | Identified Field Lobotomy Kit 1668 | -10/Exiles | Found Prototype Device 1668 | -10/Exiles | Identified PSU Rigger 1690 | -10/Exiles | Found Prototype Ballistic Gun 1730 | -10/Exiles | Warned to stay clear of 0b10 Research branches 1779 | -10/Exiles | Met EX-DEC 1942 | -10/Exiles | Discovered new exit (range 10) 1955 | -10/Exiles | Left Exiles lab with XL Autogun Array 1955 | -10/Exiles | Entered Mines 1956 | -9/Mines | Learned location of Storage (-8) 2051 | -9/Mines | Learned 2 Materials zone layouts 2094 | -9/Mines | Assisted by bots powering up and referring to "LRC-V3" 2118 | -9/Mines | Discovered new exit (range 7) 2129 | -9/Mines | Entered Materials 2129 | -8/Materials | Accompanied by 3 allies 2129 | -8/Materials | Evolved 4 slots: Propulsion x1, Utility x1, Weapon x2 2167 | -8/Materials | Identified XL Autogun Array 2265 | -8/Materials | Build established: Skirmisher 2838 | -8/Materials | Identified exit to Storage 2916 | -8/Materials | Discovered new exit (range 3) 2928 | -8/Materials | Entered Factory 2928 | -7/Factory | Evolved 2 slots: Propulsion x1, Utility x1 2986 | -7/Factory | Identified exit to Lower Caves 4607 | -7/Factory | Allied Derelicts emerged from ambush trap array 4889 | -7/Factory | Repaired Lgt. Treads 5032 | -7/Factory | Repaired Lgt. Treads 5297 | -7/Factory | Fabricated Imp. Cooling System (x2) 5354 | -7/Factory | Entered Lower Caves 5354 | -7/Lower Caves | Accompanied by 1 ally 5358 | -7/Lower Caves | Learned location of Extension (-6) 5650 | -7/Lower Caves | Build established: Gunner 6108 | -7/Lower Caves | Discovered new exit (range 15) 6292 | -7/Lower Caves | Learned location of Zion (-7) 6303 | -7/Lower Caves | Learned Factory terminal intel 6495 | -7/Lower Caves | Entered another Lower Caves area 6513 | -7/Lower Caves | Attracted the attention of an 0b10 checkpoint 6667 | -7/Lower Caves | Discovered new exit (range 13) 7038 | -7/Lower Caves | Discovered new exit (range 15) 7123 | -7/Lower Caves | Entered Zion 7184 | -7/Zion | Learned Factory garrison access intel 7201 | -7/Zion | Discovered new exit (range 16) 7278 | -7/Zion | System corruption cleaned by Quarantine Array 7529 | -7/Zion | Learned location of Armory (-4) 7713 | -7/Zion | Rebuked by Imprinter 7740 | -7/Zion | Attempted to imprint without authorization 7740 | -7/Zion | Attacked by Zionites 8213 | -7/Zion | Build established: Scavenger-Gunner 8583 | -7/Zion | Spotted 0S-VOD(B) 8592 | -7/Zion | Spotted 93-4UX(B) 8984 | -7/Zion | Entered Proximity Caves 8999 | -6/Proximity Caves | Released all parts (6) 9030 | -6/Proximity Caves | Lost 7 parts (1p2n1u3w) 9040 | -6/Proximity Caves | Attracted the attention of an 0b10 checkpoint 9089 | -6/Proximity Caves | Core integrity fell below 50% 9114 | -6/Proximity Caves | Core integrity fell below 20% 9160 | -6/Proximity Caves | Destroyed by S-27 Virus with Autogun Last Messages --------------- 08945_ System corrupted: Matter fused (-8). 08947_ Acquired Neutrino Core. LOCATION=UNKNOWN GOAL=ESCAPE 08985_ Arm. Treads destroyed. 08986_ Hrd. Medium Armor Plating destroyed. 08988_ XL Autogun Subcomponent destroyed. 08996_ Arm. Treads destroyed. 08997_ Imp. Deuterium Engine destroyed. 08998_ XL Autogun Subcomponent destroyed. 08999_ Released XL Autogun Subcomponent. 08999_ Released Hcp. Storage Unit. 08999_ Released Hacking Suite. 08999_ Released Imp. Targeting Computer. 08999_ Released Arm. Treads. 08999_ Slammed into L-41 Fighter. 08999_ Destabilizing: Core damaged (-21). 09001_ Extracted 138 matter. 09040_ Y-54 Guardian: "INTERCEPTING UNREGISTERED DERELICT." 09118_ Transmission Jammer destroyed. Map ----- +----------------------------------------------------+ | ????????????????????????# #?## #??? | | ????????????????????????## #### #?? | | ?????????????????????????## ## ## #? | | ??????????????????????????## ### #?# | | ?????????????????????????### #### ###?## | | ?????????????????????????# ##?# ###??### | | ?????????????????????????## #??#### ##???? | | ??????????????????????????#####????## ## #? | | ?????###??????????????????????????## ##? #? | | ????## ##?????????????????????????# ##??? # ##? | | ???## ##????????????????????????## #??? #? #?? | | ???# ###############????????#### #??? #?? #? | | ???# s #??# ##### # #### #???#? | | ???### s #??# #????? | | ???### ############s #??# #????? | | ?### #?######?## ####### $ #????? | | ## #### ### ##??# ### ##????? | | # ##?# #??###???#### ###?????? | | ## ###??# #?????????### ##### #?? | | ?# ###### #?###????## #?? | | ?# ## ##???# # #### #?? | | ?# #???# # # ####???? | | ?# ######## ##???### #???? | | ?# #??????# ###??????# #### #?? | | ?# #??????## ##????????# #????? | | ?# ???????## @ #?????????# #??????? | | ?# ????????## ##????????# #????????? | | ?####?????????## ## $##??###??# #????????? | | ???????????????######### #?## #### ### ##???? | | ???????????????????????## ### #???? | | ????????????????????????## ## #??? | | ?????????????????????????# ####??? | | ?????????????????????????# ##?????? | | ?????????????????????? #??????? | | ??????????????????? #??????? | | ??????????????????# #######??????? | | ??????????????????## ## #### ##????????????? | | ???????????????????############??###?????????????? | | ?????????????????????????????????????????????????? | | ?????????????????????????????????????????????????? | | ?????????????????????????????????????????????????? | | ?????????????????????????????????????????????????? | | ?????????????????????????????????????????????????? | | ?????????????????????????????????????????????????? | | ?????????????????????????????????????????????????? | | ?????????????????????????????????????????????????? | | ?????????????????????????????????????????????????? | | ?????????????????????????????????????????????????? | | ?????????????????????????????????????????????????? | | ?????????????????????????????????????????????????? | +----------------------------------------------------+ Best States ------------- Heat Dissipation 34 Energy Generation 16 Energy Capacity 290 Matter Stores 300 Matter Capacity 300 Sight Range 16 Terrain Scan Range 16 Terrain Scan Density 210 Jamming Range 12 Armor Coverage 225 Core Shielding 20 Evasion (%) 50 Targeting Accuracy 6 Recoil Reduction 4 Offensive Hacking 10 Item Schematics ----------------- Microactuators | -7/Zion | Archive Adv. Sensor Array | -7/Zion | Archive Lrn. Missile Launcher | -7/Zion | Archive Arc Projector | -7/Zion | Archive Power Amplifier | -7/Zion | Archive Imp. Deuterium Engine | -7/Zion | Archive Imp. Recalibrator | -7/Zion | Archive Flexi-carbon Leg | -7/Zion | Archive Imp. Salvage Targeting Computer | -7/Zion | Archive Adv. Terrain Scanner | -7/Zion | Archive Core Analyzer | -7/Zion | Archive Imp. Particle Charger | -7/Zion | Archive Coolant Injector | -7/Zion | Archive Disruptor Cannon | -7/Zion | Archive Hvy. Mass Driver | -7/Zion | Archive Robot Schematics ------------------ Y-54 Guardian | -7/Zion | Archive O-24 Administrator | -7/Zion | Archive H-55 Commando | -7/Zion | Archive Fabricated ------------ Imp. Cooling System | x2 | -7/Factory | Preloaded Alien Tech Used ----------------- None Achievements -------------- Novice Programmer Challenges ------------ None Game ------ Seed SuperdenseDeepInterrupter Manual? 0 Play Time 01:08:00 Cumulative 122.9 hours Start 2024.12.07 @ 21:01:00 End 2024.12.07 @ 22:09:14 Sessions 1 Manual Loads 0 Difficulty Rogue Special Mode None Game No. 87 Rogue 86 Adventurer 0 Explorer 1 Win Type - Total 3 Types 1/0/1/0/0/0/1/0/0 Lore% 40 Gallery% 54 Achievement% 65 Wizard Run 0 Options --------- Layout 0 ASCII 0 Keyboard 1 Movement Numpad Keybinds 0 Fullscreen 2 Font 18/SmallcapsGlow Map View 76x50 Zoom Use 0% Tactical HUD 1 Map Filters NONE Filters NONE Steam 1 RUN: b20eba04-18ad-4da0-8081-63c5d48545a6